fUSD/lending_fUSD_20250930
["ID","MTS","AMOUNT","RATE_DAILY","PERIOD"]
[388601587,1759249881139,-267.66526,0.00019452,2]
[388601588,1759249881149,-267.66526,0.00019452,2]
[388601589,1759249881158,-615.502504,0.00019452,2]
[388601590,1759249881168,-267.66526,0.00019452,2]
[388601591,1759249881177,-615.502504,0.00019452,2]
[388601592,1759249881187,-500.0,0.00019452,2]
[388601593,1759249881196,-1630.49,0.00019452,2]
[388601594,1759249881206,-615.502504,0.00019452,2]
[388601595,1759249881217,-267.66526,0.00019452,2]
[388601596,1759249881226,-267.66526,0.00019452,2]
[388601597,1759249881236,-615.502504,0.00019452,2]
[388601598,1759249881245,-267.66526,0.00019452,2]
[388601599,1759249881255,-615.502504,0.00019452,2]
[388601600,1759249881265,-615.502504,0.00019452,2]
[388601601,1759249881276,-903.51,0.00019452,2]
[388601602,1759249881286,-615.502504,0.00019452,2]
[388601603,1759249881296,-615.502504,0.00019452,2]
[388601604,1759249881306,-500.0,0.00019452,2]
[388601605,1759249881317,-151.0,0.00019452,2]
[388601606,1759249881328,-615.502504,0.00019452,2]
[388601607,1759249881338,-151.0,0.00019452,2]
[388601608,1759249881348,-500.0,0.00019452,2]
[388601609,1759249881360,-4102.41,0.00019452,2]
[388601610,1759249881370,-151.0,0.00019452,2]
[388601611,1759249881379,-151.0,0.00019452,2]
[388601612,1759249881388,-151.0,0.00019452,2]
[388601613,1759249881398,-500.0,0.00019452,2]
[388601614,1759249881407,-151.0,0.00019452,2]
[388601615,1759249881418,-151.0,0.00019452,2]
[388601616,1759249881427,-151.0,0.00019452,2]
[388601617,1759249881437,-837.98,0.00019452,2]
[388601618,1759249881447,-151.0,0.00019452,2]
[388601619,1759249881458,-500.0,0.00019452,2]
[388601620,1759249881468,-1317.29,0.00019452,2]
[388601621,1759249881477,-222.152807,0.00019452,2]
[388601622,1759249881486,-500.0,0.00019452,2]
[388601623,1759249881496,-2726.72,0.00019452,2]
[388601624,1759249881505,-500.0,0.00019452,2]
[388601625,1759249881514,-151.0,0.00019452,2]
[388601626,1759249881523,-587.47,0.00019452,2]
[388601627,1759249881533,-500.0,0.00019452,2]
[388601628,1759249881542,-729.0,0.00019452,2]
[388601629,1759249881551,-2241.56,0.00019452,2]
[388601630,1759249881560,-2179.49,0.00019452,2]
[388601631,1759249881570,-18146.06,0.00019452,2]
[388601632,1759249881579,-1855.55,0.00019452,2]
[388601633,1759249881589,-553.07,0.00019452,2]
[388601634,1759249881599,-1720.81,0.00019452,2]
[388601635,1759249881610,-699.93,0.00019452,2]
[388601636,1759249881619,-500.0,0.00019452,2]
[388601637,1759249881628,-1457.58,0.00019452,2]
[388601638,1759249881637,-884.09,0.00019452,2]
[388601639,1759249881648,-151.0,0.00019452,2]
[388601640,1759249881658,-894.88,0.00019452,2]
[388601641,1759249881667,-151.0,0.00019452,2]
[388601642,1759249881677,-151.0,0.00019452,2]
[388601643,1759249881686,-4750.23,0.00019452,2]
[388601644,1759249881696,-299.98188218,0.00019452,2]
[388601645,1759249881705,-671.8,0.00019452,2]
[388601646,1759249881715,-500.0,0.00019452,2]
[388601647,1759249881726,-222.967787,0.00019452,2]
[388601648,1759249881735,-222.967787,0.00019452,2]
[388601649,1759249881746,-222.967787,0.00019452,2]
[388601650,1759249881756,-1404.85,0.00019452,2]
[388601651,1759249881766,-573.82,0.00019452,2]
[388601652,1759249881776,-1346.31,0.00019452,2]
[388601653,1759249881786,-1054.21,0.00019452,2]
[388601654,1759249881796,-222.967787,0.00019452,2]
[388601655,1759249881805,-222.967787,0.00019452,2]
[388601656,1759249881814,-222.967787,0.00019452,2]
[388601657,1759249881824,-500.0,0.00019452,2]
[388601658,1759249881833,-222.967787,0.00019452,2]
[388601659,1759249881843,-6281.63,0.00019452,2]
[388601660,1759249881853,-222.967787,0.00019452,2]
[388601661,1759249881862,-222.967787,0.00019452,2]
[388601662,1759249881872,-500.0,0.00019452,2]
[388601663,1759249881884,-500.0,0.00019452,2]
[388601664,1759249881893,-222.967787,0.00019452,2]
[388601665,1759249881903,-1918.25,0.00019452,2]
[388601666,1759249881912,-222.967787,0.00019452,2]
[388601667,1759249882282,-222.967787,0.00019452,2]
[388601668,1759249882293,-2153.55,0.00019452,2]
[388601669,1759249882302,-541.92,0.00019452,2]
[388601670,1759249882311,-500.0,0.00019452,2]
[388601671,1759249882321,-3681.5,0.00019452,2]
[388601672,1759249882331,-500.0,0.00019452,2]
[388601673,1759249882340,-2594.46,0.00019452,2]
[388601674,1759249882350,-500.0,0.00019452,2]
[388601675,1759249882359,-11792.7,0.00019452,2]
[388601676,1759249882369,-500.0,0.00019452,2]
[388601677,1759249882379,-500.0,0.00019452,2]
[388601678,1759249882389,-153.142515,0.00019452,2]
[388601679,1759249882398,-160.0,0.00019452,2]
[388601680,1759249882409,-153.142515,0.00019452,2]
[388601681,1759249882419,-160.0,0.00019452,2]
[388601682,1759249882428,-160.0,0.00019452,2]
[388601683,1759249882438,-160.0,0.00019452,2]
[388601684,1759249882447,-4009.17,0.00019452,2]
[388601685,1759249882456,-160.0,0.00019452,2]
[388601686,1759249882466,-153.142515,0.00019452,2]
[388601687,1759249882476,-153.142515,0.00019452,2]
[388601688,1759249882486,-160.0,0.00019452,2]
[388601689,1759249882495,-500.0,0.00019452,2]
[388601690,1759249882504,-160.0,0.00019452,2]
[388601691,1759249882514,-160.0,0.00019452,2]
[388601692,1759249882523,-153.142515,0.00019452,2]
[388601693,1759249882534,-160.0,0.00019452,2]
[388601694,1759249882544,-742.95,0.00019452,2]
[388601695,1759249882556,-153.142515,0.00019452,2]
[388601696,1759249882565,-160.0,0.00019452,2]
[388601697,1759249882575,-277.412378,0.00019452,2]
[388601698,1759249882584,-815.83,0.00019452,2]
[388601699,1759249882593,-500.0,0.00019452,2]
[388601700,1759249882604,-160.0,0.00019452,2]
[388601701,1759249882615,-277.412378,0.00019452,2]
[388601702,1759249882624,-160.0,0.00019452,2]
[388601703,1759249882636,-160.0,0.00019452,2]
[388601704,1759249882646,-4650.94,0.00019452,2]
[388601705,1759249882655,-153.142515,0.00019452,2]
[388601706,1759249882666,-500.0,0.00019452,2]
[388601707,1759249882675,-160.0,0.00019452,2]
[388601708,1759249882686,-153.142515,0.00019452,2]
[388601709,1759249882696,-277.412378,0.00019452,2]
[388601710,1759249882706,-160.0,0.00019452,2]
[388601711,1759249882716,-277.412378,0.00019452,2]
[388601712,1759249882726,-500.0,0.00019452,2]
[388601713,1759249882735,-164.50678,0.00019452,2]
[388601714,1759249882746,-503.77,0.00019452,2]
[388601715,1759249882757,-277.412378,0.00019452,2]
[388601716,1759249882766,-277.412378,0.00019452,2]
[388601717,1759249882775,-500.0,0.00019452,2]
[388601718,1759249882785,-151.0,0.00019452,2]
[388601719,1759249882794,-277.412378,0.00019452,2]
[388601720,1759249882803,-500.0,0.00019452,2]
[388601721,1759249882813,-277.412378,0.00019452,2]
[388601722,1759249882822,-500.0,0.00019452,2]
[388601723,1759249882832,-500.0,0.00019452,2]
[388601724,1759249882841,-509.58,0.00019452,2]
[388601725,1759249882850,-160.0,0.00019452,2]
[388601726,1759249882860,-160.0,0.00019452,2]
[388601727,1759249882869,-160.0,0.00019452,2]
[388601728,1759249882879,-500.0,0.00019452,2]
[388601729,1759249882897,-160.0,0.00019452,2]
[388601730,1759249882911,-500.0,0.00019452,2]
[388601731,1759249882920,-268.272902,0.00019452,2]
[388601732,1759249882930,-160.0,0.00019452,2]
[388601733,1759249882939,-268.272902,0.00019452,2]
[388601734,1759249882949,-160.0,0.00019452,2]
[388601735,1759249882959,-673.94,0.00019452,2]
[388601736,1759249882968,-160.0,0.00019452,2]
[388601737,1759249882978,-160.0,0.00019452,2]
[388601738,1759249882988,-577.99,0.00019452,2]
[388601739,1759249882997,-160.0,0.00019452,2]
[388601740,1759249883007,-160.0,0.00019452,2]
[388601741,1759249883016,-268.272902,0.00019452,2]
[388601742,1759249883025,-160.0,0.00019452,2]
[388601743,1759249883035,-268.272902,0.00019452,2]
[388601744,1759249883045,-151.0,0.00019452,2]
[388601745,1759249883054,-160.0,0.00019452,2]
[388601746,1759249883064,-160.0,0.00019452,2]
[388601747,1759249883074,-945.405985,0.00019452,2]
[388601748,1759249883083,-500.0,0.00019452,2]
[388601749,1759249883093,-160.0,0.00019452,2]
[388601750,1759249883103,-945.405985,0.00019452,2]
[388601751,1759249883113,-160.0,0.00019452,2]
[388601752,1759249883123,-268.272902,0.00019452,2]
[388601753,1759249883134,-1824.03,0.00019452,2]
[388601754,1759249883143,-160.00000025,0.00019452,2]
[388601755,1759249883153,-268.272902,0.00019452,2]
[388601756,1759249883163,-1039.55,0.00019452,2]
[388601757,1759249883173,-4006.98,0.00019452,2]
[388601758,1759249883183,-552.24,0.00019452,2]
[388601759,1759249883193,-945.405985,0.00019452,2]
[388601760,1759249883203,-945.405985,0.00019452,2]
[388601761,1759249883213,-3310.73,0.00019452,2]
[388601762,1759249883224,-2725.3,0.00019452,2]
[388601763,1759249883234,-268.272902,0.00019452,2]
[388601764,1759249883244,-4254.75,0.00019452,2]
[388601765,1759249883255,-524.53,0.00019452,2]
[388601766,1759249883265,-268.272902,0.00019452,2]
[388601767,1759249883276,-945.405985,0.00019452,2]
[388601768,1759249883285,-945.405985,0.00019452,2]
[388601769,1759249883294,-945.405985,0.00019452,2]
[388601770,1759249883303,-945.405985,0.00019452,2]
[388601771,1759249883313,-2112.94,0.00019452,2]
[388601772,1759249883323,-500.0,0.00019452,2]
[388601773,1759249883332,-797.55017,0.00019452,2]
[388601774,1759249883342,-151.0,0.00019452,2]
[388601775,1759249883351,-151.0,0.00019452,2]
[388601776,1759249883360,-151.0,0.00019452,2]
[388601777,1759249883370,-1192.68,0.00019452,2]
[388601778,1759249883379,-151.0,0.00019452,2]
[388601779,1759249883389,-1553.36,0.00019452,2]
[388601780,1759249883399,-2040.26,0.00019452,2]
[388601781,1759249883408,-2061.7,0.00019452,2]
[388601782,1759249883418,-1221.77,0.00019452,2]
[388601783,1759249883429,-500.0,0.00019452,2]
[388601784,1759249883438,-500.0,0.00019452,2]
[388601785,1759249883447,-838.77,0.00019452,2]
[388601786,1759249883456,-2236.55,0.00019452,2]
[388601787,1759249883467,-3556.09,0.00019452,2]
[388601788,1759249883477,-716.19,0.00019452,2]
[388601789,1759249883487,-500.0,0.00019452,2]
[388601790,1759249883496,-500.0,0.00019452,2]
[388601791,1759249883506,-500.0,0.00019452,2]
[388601792,1759249883516,-7101.73,0.00019452,2]
[388601793,1759249883526,-500.0,0.00019452,2]
[388601794,1759249883536,-680.1,0.00019452,2]
[388601795,1759249883546,-3355.08,0.00019452,2]
[388601796,1759249883555,-587.09,0.00019452,2]
[388601797,1759249883566,-967.63,0.00019452,2]
[388601798,1759249883575,-832.66,0.00019452,2]
[388601799,1759249883584,-500.0,0.00019452,2]
[388601800,1759249883594,-3909.19,0.00019452,2]
[388601801,1759249883604,-3776.48,0.00019452,2]
[388601802,1759249883613,-1652.5,0.00019452,2]
[388601803,1759249883623,-3948.99,0.00019452,2]
[388601804,1759249883632,-688.22,0.00019452,2]
[388601805,1759249883643,-712.71,0.00019452,2]
[388601806,1759249883652,-1093.49,0.00019452,2]
[388601807,1759249883662,-500.0,0.00019452,2]
[388601808,1759249883671,-10104.32,0.00019452,2]
[388601809,1759249883681,-3647.23,0.00019452,2]
[388601810,1759249883691,-500.0,0.00019452,2]
[388601811,1759249883701,-2006.95,0.00019452,2]
[388601812,1759249883711,-3056.84,0.00019452,2]
[388601813,1759249883724,-4311.98,0.00019452,2]
[388601814,1759249883734,-500.0,0.00019452,2]
[388601815,1759249883744,-500.0,0.00019452,2]
[388601816,1759249883754,-500.0,0.00019452,2]
[388601817,1759249883764,-500.0,0.00019452,2]
[388601818,1759249883773,-577.68,0.00019452,2]
[388601819,1759249883783,-4236.22,0.00019452,2]
[388601820,1759249883793,-10950.74,0.00019452,2]
[388601821,1759249883802,-3778.03,0.00019452,2]
[388601822,1759249883811,-500.0,0.00019452,2]
[388601823,1759249883821,-854.016184,0.00019452,2]
[388601824,1759249883831,-2317.13,0.00019452,2]
[388601825,1759249883841,-544.46,0.00019452,2]
[388601826,1759249883851,-2317.13,0.00019452,2]
[388601827,1759249883861,-615.74,0.00019452,2]
[388601828,1759249883871,-221.68,0.00019452,2]
[388601829,1759249883887,-500.0,0.00019452,2]
[388601830,1759249883902,-500.0,0.00019452,2]
[388601831,1759249883912,-500.0,0.00019452,2]
[388601832,1759249883922,-500.0,0.00019452,2]
[388601833,1759249883933,-4845.1,0.00019452,2]
[388601834,1759249883943,-448.185677,0.00019452,2]
[388601835,1759249883953,-500.0,0.00019452,2]
[388601836,1759249883966,-10350.59,0.00019452,2]
[388601837,1759249883976,-1668.56,0.00019452,2]
[388601838,1759249883985,-448.185677,0.00019452,2]
[388601839,1759249883995,-151.0,0.00019452,2]
[388601840,1759249884006,-151.0,0.00019452,2]
[388601841,1759249884016,-500.0,0.00019452,2]
[388601842,1759249884025,-2457.76,0.00019452,2]
[388601843,1759249884035,-448.185677,0.00019452,2]
[388601844,1759249884044,-5485.18,0.00019452,2]
[388601845,1759249884054,-151.0,0.00019452,2]
[388601846,1759249884064,-448.185677,0.00019452,2]
[388601847,1759249884074,-151.0,0.00019452,2]
[388601848,1759249884083,-820.21943,0.00019452,2]
[388601849,1759249884093,-3078.45,0.00019452,2]
[388601850,1759249884102,-820.21943,0.00019452,2]
[388601851,1759249884112,-500.0,0.00019452,2]
[388601852,1759249884121,-4663.59,0.00019452,2]
[388601853,1759249884131,-448.185677,0.00019452,2]
[388601854,1759249884141,-448.185677,0.00019452,2]
[388601855,1759249884150,-1714.63,0.00019452,2]
[388601856,1759249884161,-820.21943,0.00019452,2]
[388601857,1759249884171,-3776.32,0.00019452,2]
[388601858,1759249884182,-8427.71,0.00019452,2]
[388601859,1759249884192,-820.21943,0.00019452,2]
[388601860,1759249884202,-151.0,0.00019452,2]
[388601861,1759249884212,-448.185677,0.00019452,2]
[388601862,1759249884222,-300.0,0.00019452,2]
[388601863,1759249884232,-448.185677,0.00019452,2]
[388601864,1759249884241,-151.0,0.00019452,2]
[388601865,1759249884251,-4319.88,0.00019452,2]
[388601866,1759249884260,-820.21943,0.00019452,2]
[388601867,1759249884270,-151.0,0.00019452,2]
[388601868,1759249884280,-820.21943,0.00019452,2]
[388601869,1759249884290,-151.0,0.00019452,2]
[388601870,1759249884299,-151.0,0.00019452,2]
[388601871,1759249884308,-151.0,0.00019452,2]
[388601872,1759249884318,-500.0,0.00019452,2]
[388601873,1759249884328,-500.0,0.00019452,2]
[388601874,1759249884337,-151.0,0.00019452,2]
[388601875,1759249884347,-151.0,0.00019452,2]
[388601876,1759249884356,-500.0,0.00019452,2]
[388601877,1759249884365,-500.0,0.00019452,2]
[388601878,1759249884374,-252.528206,0.00019452,2]
[388601879,1759249884384,-820.21943,0.00019452,2]
[388601880,1759249884394,-388.31535718,0.00019452,2]
[388601881,1759249884404,-820.21943,0.00019452,2]
[388601882,1759249884414,-151.0,0.00019452,2]
[388601883,1759249884423,-3196.48,0.00019452,2]
[388601884,1759249884433,-151.0,0.00019452,2]
[388601885,1759249884443,-5329.41,0.00019452,2]
[388601886,1759249884452,-500.0,0.00019452,2]
[388601887,1759249884462,-500.0,0.00019452,2]
[388601888,1759249884472,-513.37,0.00019452,2]
[388601889,1759249884482,-500.0,0.00019452,2]
[388601890,1759249884491,-500.0,0.00019452,2]
[388601891,1759249884501,-6542.85,0.00019452,2]
[388601892,1759249884510,-3945.89,0.00019452,2]
[388601893,1759249884520,-2281.93,0.00019452,2]
[388601894,1759249884529,-3234.39,0.00019452,2]
[388601895,1759249884539,-3420.16,0.00019452,2]
[388601896,1759249884548,-4450.27,0.00019452,2]
[388601897,1759249884558,-500.0,0.00019452,2]
[388601898,1759249884568,-596.74,0.00019452,2]
[388601899,1759249884577,-4065.87,0.00019452,2]
[388601900,1759249884587,-9007.8,0.00019452,2]
[388601901,1759249884597,-500.0,0.00019452,2]
[388601902,1759249884606,-2685.17,0.00019452,2]
[388601903,1759249884615,-500.0,0.00019452,2]
[388601904,1759249884624,-151.0,0.00019452,2]
[388601905,1759249884634,-151.0,0.00019452,2]
[388601906,1759249884643,-2281.93,0.00019452,2]
[388601907,1759249884654,-500.0,0.00019452,2]
[388601908,1759249884664,-500.0,0.00019452,2]
[388601909,1759249884674,-500.0,0.00019452,2]
[388601910,1759249884802,-500.0,0.00019452,2]
[388601911,1759249884811,-3894.67,0.00019452,2]
[388601912,1759249884820,-3031.72,0.00019452,2]
[388601913,1759249884830,-1707.35,0.00019452,2]
[388601914,1759249884839,-500.0,0.00019452,2]
[388601915,1759249884848,-151.0,0.00019452,2]
[388601916,1759249884858,-197.930678,0.00019452,2]
[388601917,1759249884867,-1550.26,0.00019452,2]
[388601918,1759249884876,-151.0,0.00019452,2]
[388601919,1759249884890,-197.930678,0.00019452,2]
[388601920,1759249884899,-825.87,0.00019452,2]
[388601921,1759249884909,-3495.15,0.00019452,2]
[388601922,1759249884918,-500.0,0.00019452,2]
[388601923,1759249884927,-500.0,0.00019452,2]
[388601924,1759249884936,-151.0,0.00019452,2]
[388601925,1759249884945,-9279.94,0.00019452,2]
[388601926,1759249884956,-197.930678,0.00019452,2]
[388601927,1759249884968,-6332.75,0.00019452,2]
[388601928,1759249884977,-151.0,0.00019452,2]
[388601929,1759249884987,-197.930678,0.00019452,2]
[388601930,1759249884996,-500.0,0.00019452,2]
[388601931,1759249885006,-500.0,0.00019452,2]
[388601932,1759249885016,-151.0,0.00019452,2]
[388601933,1759249885025,-151.0,0.00019452,2]
[388601934,1759249885036,-197.930678,0.00019452,2]
[388601935,1759249885046,-173.304434,0.00019452,2]
[388601936,1759249885055,-626.87,0.00019452,2]
[388601937,1759249885064,-197.930678,0.00019452,2]
[388601938,1759249885075,-173.304434,0.00019452,2]
[388601939,1759249885085,-235.194146,0.00019452,2]
[388601940,1759249885094,-612.52,0.00019452,2]
[388601941,1759249885103,-500.0,0.00019452,2]
[388601942,1759249885112,-197.930678,0.00019452,2]
[388601943,1759249885121,-173.304434,0.00019452,2]
[388601944,1759249885130,-173.304434,0.00019452,2]
[388601945,1759249885139,-197.930678,0.00019452,2]
[388601946,1759249885148,-1187.06,0.00019452,2]
[388601947,1759249885157,-173.304434,0.00019452,2]
[388601948,1759249885166,-173.304434,0.00019452,2]
[388601949,1759249885175,-500.0,0.00019452,2]
[388601950,1759249885184,-173.304434,0.00019452,2]
[388601951,1759249885193,-173.304434,0.00019452,2]
[388601952,1759249885203,-611.41,0.00019452,2]
[388601953,1759249885212,-3259.44,0.00019452,2]
[388601954,1759249885226,-5596.89,0.00019452,2]
[388601955,1759249885235,-500.0,0.00019452,2]
[388601956,1759249885244,-7368.59,0.00019452,2]
[388601957,1759249885254,-2874.44,0.00019452,2]
[388601958,1759249885263,-653.3,0.00019452,2]
[388601959,1759249885273,-1284.82,0.00019452,2]
[388601960,1759249885282,-7611.27,0.00019452,2]
[388601961,1759249885292,-3596.08,0.00019452,2]
[388601962,1759249885300,-500.0,0.00019452,2]
[388601963,1759249885309,-500.0,0.00019452,2]
[388601964,1759249885318,-500.0,0.00019452,2]
[388601965,1759249885327,-500.0,0.00019452,2]
[388601966,1759249885337,-500.0,0.00019452,2]
[388601967,1759249885346,-1643.45,0.00019452,2]
[388601968,1759249885355,-399.028558,0.00019452,2]
[388601969,1759249885364,-500.0,0.00019452,2]
[388601970,1759249885374,-3303.0,0.00019452,2]
[388601971,1759249885383,-3234.33,0.00019452,2]
[388601972,1759249885392,-709.81,0.00019452,2]
[388601973,1759249885401,-500.0,0.00019452,2]
[388601974,1759249885410,-500.0,0.00019452,2]
[388601975,1759249885419,-566.59,0.00019452,2]
[388601976,1759249885428,-500.0,0.00019452,2]
[388601977,1759249885437,-3980.9,0.00019452,2]
[388601978,1759249885446,-500.0,0.00019452,2]
[388601979,1759249885456,-500.0,0.00019452,2]
[388601980,1759249885466,-3052.68,0.00019452,2]
[388601981,1759249885475,-196.706234,0.00019452,2]
[388601982,1759249885485,-5623.16,0.00019452,2]
[388601983,1759249885494,-500.0,0.00019452,2]
[388601984,1759249885503,-196.706234,0.00019452,2]
[388601985,1759249885512,-2661.75,0.00019452,2]
[388601986,1759249885522,-3422.04,0.00019452,2]
[388601987,1759249885531,-196.706234,0.00019452,2]
[388601988,1759249885541,-500.0,0.00019452,2]
[388601989,1759249885550,-196.706234,0.00019452,2]
[388601990,1759249885560,-1243.53,0.00019452,2]
[388601991,1759249885569,-151.0,0.00019452,2]
[388601992,1759249885579,-1070.829124,0.00019452,2]
[388601993,1759249885588,-196.706234,0.00019452,2]
[388601994,1759249885597,-151.0,0.00019452,2]
[388601995,1759249885606,-196.706234,0.00019452,2]
[388601996,1759249885616,-1070.829124,0.00019452,2]
[388601997,1759249885626,-3348.06,0.00019452,2]
[388601998,1759249885635,-151.0,0.00019452,2]
[388601999,1759249885644,-151.0,0.00019452,2]
[388602000,1759249885654,-500.0,0.00019452,2]
[388602001,1759249885663,-2818.73,0.00019452,2]
[388602002,1759249885672,-151.0,0.00019452,2]
[388602003,1759249885681,-196.706234,0.00019452,2]
[388602004,1759249885691,-1348.03,0.00019452,2]
[388602005,1759249885699,-500.0,0.00019452,2]
[388602006,1759249885708,-1070.829124,0.00019452,2]
[388602007,1759249885720,-196.706234,0.00019452,2]
[388602008,1759249885729,-1070.829124,0.00019452,2]
[388602009,1759249885739,-2962.5,0.00019452,2]
[388602010,1759249885749,-151.0,0.00019452,2]
[388602011,1759249885758,-191.349283,0.00019452,2]
[388602012,1759249885768,-151.0,0.00019452,2]
[388602013,1759249885777,-191.349283,0.00019452,2]
[388602014,1759249885786,-1183.6,0.00019452,2]
[388602015,1759249885795,-1070.829124,0.00019452,2]
[388602016,1759249885805,-8067.53,0.00019452,2]
[388602017,1759249885814,-1070.829124,0.00019452,2]
[388602018,1759249885823,-191.349283,0.00019452,2]
[388602019,1759249885832,-191.349283,0.00019452,2]
[388602020,1759249885842,-4355.17,0.00019452,2]
[388602021,1759249885852,-1070.829124,0.00019452,2]
[388602022,1759249885861,-500.0,0.00019452,2]
[388602023,1759249885870,-1070.829124,0.00019452,2]
[388602024,1759249885881,-1787.74,0.00019452,2]
[388602025,1759249885893,-191.349283,0.00019452,2]
[388602026,1759249885902,-191.349283,0.00019452,2]
[388602027,1759249885911,-500.0,0.00019452,2]
[388602028,1759249885923,-511.63,0.00019452,2]
[388602029,1759249885932,-500.0,0.00019452,2]
[388602030,1759249885941,-500.0,0.00019452,2]
[388602031,1759249885950,-500.0,0.00019452,2]
[388602032,1759249885972,-1785.670203,0.00019452,2]
[388602033,1759249885982,-500.0,0.00019452,2]
[388602034,1759249885991,-1290.74,0.00019452,2]
[388602035,1759249886001,-3721.57,0.00019452,2]
[388602036,1759249886009,-500.0,0.00019452,2]
[388602037,1759249886018,-1452.54,0.00019452,2]
[388602038,1759249886027,-4633.16,0.00019452,2]
[388602039,1759249886036,-5121.53,0.00019452,2]
[388602040,1759249886046,-4400.59,0.00019452,2]
[388602041,1759249886055,-506.99,0.00019452,2]
[388602042,1759249886064,-1038.94,0.00019452,2]
[388602043,1759249886074,-4349.0,0.00019452,2]
[388602044,1759249886083,-2811.19,0.00019452,2]
[388602045,1759249886092,-5522.62,0.00019452,2]
[388602046,1759249886101,-191.349283,0.00019452,2]
[388602047,1759249886110,-191.349283,0.00019452,2]
[388602048,1759249886119,-500.0,0.00019452,2]
[388602049,1759249886129,-1991.93,0.00019452,2]
[388602050,1759249886138,-500.0,0.00019452,2]
[388602051,1759249886147,-500.0,0.00019452,2]
[388602052,1759249886157,-1007.29,0.00019452,2]
[388602053,1759249886167,-3088.31,0.00019452,2]
[388602054,1759249886176,-4446.56,0.00019452,2]
[388602055,1759249886186,-607.69,0.00019452,2]
[388602056,1759249886195,-500.0,0.00019452,2]
[388602057,1759249886204,-3590.06,0.00019452,2]
[388602058,1759249886213,-500.0,0.00019452,2]
[388602059,1759249886223,-653.99,0.00019452,2]
[388602060,1759249886232,-151.0,0.00019452,2]
[388602061,1759249886241,-287.238648,0.00019452,2]
[388602062,1759249886250,-2259.98,0.00019452,2]
[388602063,1759249886259,-2817.7,0.00019452,2]
[388602064,1759249886268,-473.151156,0.00019452,2]
[388602065,1759249886277,-473.151156,0.00019452,2]
[388602066,1759249886286,-187.992218,0.00019452,2]
[388602067,1759249886294,-3323.26,0.00019452,2]
[388602068,1759249886304,-3091.77,0.00019452,2]
[388602069,1759249886312,-187.992218,0.00019452,2]
[388602070,1759249886321,-2418.14,0.00019452,2]
[388602071,1759249886330,-5049.85,0.00019452,2]
[388602072,1759249886339,-473.151156,0.00019452,2]
[388602073,1759249886349,-500.0,0.00019452,2]
[388602074,1759249886358,-473.151156,0.00019452,2]
[388602075,1759249886368,-187.992218,0.00019452,2]
[388602076,1759249886377,-187.992218,0.00019452,2]
[388602077,1759249886387,-500.0,0.00019452,2]
[388602078,1759249886396,-8849.672001,0.00019452,2]
[388602079,1759249886405,-473.151156,0.00019452,2]
[388602080,1759249886414,-8849.672001,0.00019452,2]
[388602081,1759249886423,-2092.24,0.00019452,2]
[388602082,1759249886432,-473.151156,0.00019452,2]
[388602083,1759249886440,-187.992218,0.00019452,2]
[388602084,1759249886449,-187.992218,0.00019452,2]
[388602085,1759249886458,-270.142112,0.00019452,2]
[388602086,1759249886467,-3054.67,0.00019452,2]